fUST/lending_fUST_20241123
["ID","MTS","AMOUNT","RATE_DAILY","PERIOD"]
[343054369,1732314639078,-23342.40186652,0.00028,2]
[343054370,1732314639089,-1276.1143364,0.00028,2]
[343054371,1732314639101,-16197.97379825,0.00028,2]
[343054372,1732314639112,-31944.99355362,0.00028,2]
[343054373,1732314639127,-57575.41206042,0.00028,2]
[343054374,1732314639138,-129569.78466385,0.00028,30]
[343054375,1732314639147,-151.0,0.00028,7]
[343054376,1732314639157,-454.7209773,0.00028,30]
[343054377,1732314639167,-176.85844,0.00028,7]
[343054378,1732314639176,-176.858446,0.00028,7]
[343054379,1732314639186,-164.52,0.00028,31]
[343054380,1732314639195,-164.52,0.00028,31]
[343054381,1732314639204,-212.2918136,0.00028,30]
[343054382,1732314639215,-200.28301075,0.00028,30]
[343054383,1732314639225,-2157.1907,0.00028,2]
[343054384,1732314639235,-2157.1907,0.00028,2]
[343054385,1732314639244,-859.89632792,0.00028,30]
[343054386,1732314639254,-249.54,0.00028,30]
[343054387,1732314639263,-500.0,0.00028,30]
[343054388,1732314639273,-500.0,0.00028,30]
[343054389,1732314639282,-500.0,0.00028,30]
[343054390,1732314639292,-200.31722712,0.00028,30]
[343054391,1732314639301,-12011.26040717,0.00028,2]
[343054392,1732314639310,-160.0,0.00028087,10]
[343054393,1732314639321,-1323.23635978,0.00028088,2]
[343054394,1732314639330,-160.0,0.00028121,10]
[343054395,1732314639343,-2000.0,0.00028197,5]
[343054396,1732314639352,-160.0,0.00028273,10]
[343054397,1732314639362,-160.0,0.00028273,10]
[343054398,1732314639372,-500.0,0.00028274,30]
[343054399,1732314639382,-500.0,0.00028274,30]
[343054400,1732314639392,-500.0,0.00028274,30]
[343054401,1732314639402,-160.0,0.00028399,10]
[343054402,1732314639412,-1323.23635978,0.000284,2]
[343054403,1732314639421,-606.70978553,0.0002844,6]
[343054404,1732314639431,-180.34120425,0.00028467,10]
[343054405,1732314639440,-606.70978553,0.00028468,6]
[343054406,1732314639450,-160.0,0.00028496,10]
[343054407,1732314639463,-160.0,0.00028499,10]
[343054408,1732314639472,-207.00281732,0.000285,5]
[343054409,1732314639482,-42604.79,0.000285,2]
[343054410,1732314639492,-164.52,0.000285,31]
[343054411,1732314639503,-164.52,0.000285,31]
[343054412,1732314639513,-160.0,0.00028547,10]
[343054413,1732314639523,-500.0,0.00028548,30]
[343054414,1732314639532,-500.0,0.00028548,30]
[343054415,1732314639542,-500.0,0.00028548,30]
[343054416,1732314639552,-250.8247734,0.00028548,30]
[343054417,1732314639561,-300.0,0.000286,30]
[343054418,1732314639573,-160.0,0.00028699,10]
[343054419,1732314639583,-300.0,0.000287,2]
[343054420,1732314639594,-1022.72593119,0.000287,2]
[343054421,1732314639604,-1148.14949933,0.000287,10]
[343054422,1732314639616,-160.0,0.00028712,10]
[343054423,1732314639627,-1323.23635978,0.00028713,2]
[343054424,1732314639637,-330.0,0.00028713,2]
[343054425,1732314639647,-606.70978553,0.00028724,6]
[343054426,1732314639657,-758.38723191,0.00028753,8]
[343054428,1732314639667,-49074.81600744,0.00028765,2]
[343054429,1732314639676,-604.48,0.00028767,4]
[343054432,1732314639686,-906.01955386,0.00028813,2]
[343054433,1732314639695,-906.01955386,0.00028813,2]
[343054434,1732314639705,-780111.87631025,0.00028813,10]
[343054472,1732314643283,-160.0,0.0002,2]
[343054473,1732314643293,-340.30324771,0.00020815,2]
[343054506,1732314646339,-1111.02741463,0.00020815,2]
[343054507,1732314646348,-189.54502334,0.00021089,2]
[343054508,1732314646357,-580.0,0.00023,2]
[343054509,1732314646367,-19.78640972,0.00027,2]
[343054510,1732314646426,-362.63233619,0.00023288,2]
[343054512,1732314777213,150.746254,0.00029615,120]
[343054521,1732315117755,232.43059,0.00013973,2]
[343054775,1732315836286,-300.0,0.00018867,2]
[343054776,1732315836296,-300.0,0.00018867,2]
[343054778,1732315836305,-2719.2567113,0.00018868,2]
[343054780,1732315836317,-748.49065,0.00018868,2]
[343054781,1732315836346,-13004.8921055,0.00018868,2]
[343054782,1732315836356,-157.676933,0.00019178,2]
[343054783,1732315836365,-192.24372,0.00019178,2]
[343054785,1732315836375,-1778.59134367,0.000195,2]
[343054787,1732315836384,-438.69610535,0.000199,2]
[343054788,1732315836396,-302.2943,0.000199,2]
[343054794,1732315838667,-630.01335421,0.000199,2]
[343054795,1732315838677,-452.50595125,0.00019973,2]
[343054796,1732315838687,-500.0,0.00019973,2]
[343054797,1732315838696,-160.62216249,0.00019973,2]
[343054798,1732315838707,-500.0,0.00019973,2]
[343054799,1732315838717,-500.0,0.00019973,2]
[343054800,1732315838727,-562.9393885,0.00019973,2]
[343054801,1732315838737,-500.0,0.00019973,2]
[343054802,1732315838746,-503.56010155,0.00019973,2]
[343054803,1732315838755,-500.0,0.00019973,2]
[343054805,1732315838765,-500.0,0.00019973,2]
[343054807,1732315838774,-500.0,0.00019999,2]
[343054808,1732315838783,-500.0,0.00019999,2]
[343054809,1732315838793,-284.78722641,0.00019999,2]
[343054810,1732315838802,-500.0,0.00019999,2]
[343054811,1732315838811,-500.0,0.00019999,2]
[343054812,1732315838821,-500.0,0.00019999,2]
[343054813,1732315838830,-500.0,0.00019999,2]
[343054814,1732315838840,-392.30334973,0.00019999,2]
[343054815,1732315838850,-440.22021976,0.00019999,2]
[343054816,1732315838862,-160.0,0.0002,2]
[343054817,1732315838871,-587.0,0.0002,2]
[343054818,1732315838881,-586.0,0.0002,2]
[343054819,1732315838891,-586.0,0.0002,2]
[343054820,1732315838900,-586.0,0.0002,2]
[343054821,1732315838909,-209.67569343,0.0002,2]
[343054823,1732315838919,-11468.63666557,0.0002,2]
[343054997,1732315840693,-201617.36333443,0.0002,2]
[343054999,1732315840703,-1924.0,0.000201,2]
[343055001,1732315840712,-232.43059,0.00020447,2]
[343055003,1732315840722,-500.0,0.00020521,2]
[343055005,1732315840731,-300.0,0.00020754,2]
[343055007,1732315840741,-1371.00375952,0.0002116,2]
[343055009,1732315840753,-209.67569342,0.00022179,2]
[343055011,1732315840762,-1371.00375952,0.00022419,2]
[343055013,1732315840771,-217.36766381,0.00023288,2]
[343055015,1732315840780,-580.0,0.00023562,2]
[343055017,1732315840790,-271.323,0.0002362,4]
[343055019,1732315840799,-1371.00375952,0.00023679,2]
[343055021,1732315840809,-580.0,0.00023836,2]
[343055023,1732315840818,-580.0,0.0002411,2]
[343055025,1732315840827,-580.0,0.00024164,2]
[343055027,1732315840837,-209.67569342,0.00024359,2]
[343055029,1732315840847,-580.0,0.00024384,2]
[343055031,1732315840859,-200.0,0.00024658,15]
[343055033,1732315840868,-211.12944207,0.00024658,2]
[343055035,1732315840878,-1371.00375952,0.00024938,2]
[343055037,1732315840887,-300.0,0.00025,2]
[343055039,1732315840897,-300.0,0.00025,2]
[343055041,1732315840906,-273.399999,0.00025,2]
[343055043,1732315840916,-580.0,0.00025131,2]
[343055045,1732315840925,-587.0,0.00025373,2]
[343055047,1732315840936,-300.0,0.000259,2]
[343055049,1732315840947,-500.0,0.0002595,2]
[343055051,1732315840956,-580.0,0.00026098,2]
[343055053,1732315840966,-580.0,0.00026098,2]
[343055055,1732315840976,-1371.00375952,0.00026198,2]
[343055057,1732315840985,-660.0,0.00026384,2]
[343055059,1732315840995,-1000.0,0.00026498,2]
[343055061,1732315841004,-209.67569342,0.00026538,2]
[343055063,1732315841013,-500.0,0.0002672,10]
[343055065,1732315841022,-500.0,0.0002672,10]
[343055067,1732315841031,-580.0,0.00026822,2]
[343055069,1732315841041,-300.0,0.000269,2]
[343055071,1732315841050,-232.43059,0.00026921,2]
[343055073,1732315841059,-238.21359028,0.00027,2]
[343055075,1732315841069,-580.0,0.00027064,2]
[343055077,1732315841078,-554.1,0.00027397,2]
[343055079,1732315841088,-644.97594003,0.00027397,60]
[343055081,1732315841097,-1371.00375952,0.00027457,2]
[343055084,1732315841108,-1500.0,0.000275,5]
[343055086,1732315841117,-580.0,0.00027547,2]
[343055088,1732315841126,-500.0,0.00027721,2]
[343055090,1732315841136,-192.14918444,0.00027721,2]
[343055091,1732315841145,-500.0,0.00027721,2]
[343055094,1732315841154,-287.66982474,0.00027721,2]
[343055095,1732315841163,-250000.0,0.00027722,2]
[343055098,1732315841173,-239.24407106,0.00027773,5]
[343055100,1732315841182,-300.0,0.000279,2]
[343055101,1732315841191,-580.0,0.00028031,2]
[343055104,1732315841200,-580.0,0.00028272,2]
[343055106,1732315841210,-330.0,0.00028713,2]
[343055108,1732315841219,-209.67569342,0.00028717,2]
[343055109,1732315841228,-1371.00375952,0.00028717,2]
[343055111,1732315841238,-1070.50577617,0.00028724,2]
[343055487,1732315846450,-7720.78853373,0.00028724,2]
[343055488,1732315846460,-554.1,0.00028767,4]
[343055489,1732315846470,-2000.0,0.00028797,5]
[343055490,1732315846481,-151.0,0.00028805,7]
[343055491,1732315846490,-151.0,0.00028805,7]
[343055492,1732315846500,-157.95418612,0.00028812,2]
[343055493,1732315846509,-500.0,0.00028813,10]
[343055494,1732315846519,-500.0,0.00028813,10]
[343055495,1732315846528,-500.0,0.00028813,10]
[343055496,1732315846538,-151.0,0.00028817,7]
[343055497,1732315846548,-151.0,0.00028817,7]
[343055498,1732315846557,-151.0,0.00028817,7]
[343055499,1732315846567,-151.0,0.00028817,7]
[343055500,1732315846578,-151.0,0.00028817,7]
[343055501,1732315846588,-151.0,0.00028817,7]
[343055502,1732315846598,-261.101518,0.00028817,7]
[343055503,1732315846608,-261.101518,0.00028817,7]
[343055504,1732315846617,-261.101518,0.00028817,7]
[343055505,1732315846626,-261.101518,0.00028817,7]
[343055506,1732315846635,-261.101518,0.00028817,7]
[343055507,1732315846646,-261.101518,0.00028817,7]
[343055508,1732315846655,-261.101518,0.00028817,7]
[343055509,1732315846664,-261.101518,0.00028817,7]
[343055510,1732315846674,-261.101518,0.00028817,7]
[343055511,1732315846684,-261.101518,0.00028817,7]
[343055512,1732315846694,-261.101518,0.00028817,7]
[343055513,1732315846704,-261.101518,0.00028817,7]
[343055514,1732315846714,-261.101518,0.00028817,7]
[343055515,1732315846724,-261.101518,0.00028817,7]
[343055516,1732315846735,-261.101518,0.00028817,7]
[343055517,1732315846745,-261.101518,0.00028817,7]
[343055518,1732315846755,-261.101518,0.00028817,7]
[343055519,1732315846764,-261.101518,0.00028817,7]
[343055520,1732315846774,-261.101518,0.00028817,7]
[343055521,1732315846785,-261.10152,0.00028817,7]
[343055522,1732315846794,-65490.83691815,0.00028817,10]
[343055523,1732315907030,197.566001,0.00013973,2]
[343055532,1732316602744,3000.0,0.00015,2]
[343055535,1732316617647,187.6877,0.00013973,2]
[343055588,1732317036089,-153.0,0.00019562,2]
[343055589,1732317036099,-153.0,0.00019562,2]
[343055590,1732317036108,-23.98035926,0.00019562,2]
[343055591,1732317036255,-129.01964074,0.00019562,2]
[343055592,1732317036265,-236.0,0.00019899,2]
[343055593,1732317036276,-7237.1551188,0.000199,2]
[343055642,1732317038613,-1082.75813067,0.000199,2]
[343055652,1732317038799,-499.9978326,0.000199,2]
[343055807,1732317040405,-1327.45352618,0.000199,2]
[343055809,1732317040415,-160.0,0.0002,2]
[343055811,1732317040425,-187.6877,0.00020447,2]
[343055812,1732317040434,-1760.97,0.00021,2]
[343055814,1732317040444,-500.0,0.000223,2]
[343055816,1732317040455,-500.0,0.000233,2]
[343055818,1732317040465,-217.058,0.0002363,4]
[343055820,1732317040475,-157.676933,0.00024391,2]
[343055822,1732317040484,-300.0,0.00025,2]
[343055824,1732317040495,-300.0,0.00025,2]
[343055826,1732317040504,-273.399999,0.00025,2]
[343055828,1732317040514,-303.351856,0.00025,2]
[343055830,1732317040523,-200.0,0.00025,17]
[343055832,1732317040532,-500.0,0.0002515,2]
[343055833,1732317040541,-200.0,0.00025201,15]
[343055835,1732317040550,-303.351856,0.0002525,2]
[343055838,1732317040559,-303.351856,0.000255,2]
[343055840,1732317040568,-303.351856,0.0002575,2]
[343055842,1732317040577,-300.0,0.000259,2]
[343055844,1732317040586,-303.351856,0.00026,2]
[343055846,1732317040595,-455.027784,0.0002625,4]
[343055848,1732317040604,-651.4042164,0.00026384,2]
[343055849,1732317040614,-606.65360611,0.000265,4]
[343055851,1732317040623,-500.0,0.0002672,10]
[343055853,1732317040632,-500.0,0.0002672,10]
[343055855,1732317040641,-300.0,0.000269,2]
[343055857,1732317040650,-187.6877,0.00026921,2]
[343055859,1732317040659,-507.93,0.00027397,2]
[343055861,1732317040668,-300.0,0.000279,2]
[343055862,1732317040678,-1168.81624758,0.00028568,2]
[343055864,1732317040687,-39455.46,0.00028697,10]
[343055866,1732317040696,-45602.70218242,0.00028707,10]
[343055869,1732317040713,-216.54781758,0.00028707,10]
[343055871,1732317040722,-479.16082476,0.00028707,10]
[343055873,1732317040734,-619.71305479,0.00028707,10]
[343055875,1732317040745,-261.546,0.00028707,10]
[343055877,1732317040756,-42196.88958981,0.00028707,10]
[343056182,1732317043727,-3789.25053064,0.00028707,10]
[343056184,1732317043737,-154.70037219,0.00028716,2]
[343056186,1732317043747,-500.0,0.00028716,2]
[343056188,1732317043756,-500.0,0.00028716,2]
[343056190,1732317043766,-163.88248063,0.00028716,2]
[343056192,1732317043775,-500.0,0.00028716,2]
[343056194,1732317043785,-330.0,0.00028717,2]
[343056196,1732317043796,-94035.19869512,0.00028717,2]
[343056489,1732317046773,-161.0,0.00022,2]
[343056491,1732317046782,-523.66197027,0.00028717,2]
[343056746,1732317125978,179.041,0.0002957,120]
[343056750,1732317301878,168.075873,0.00013973,2]
[343056986,1732317972831,159.672079,0.00013973,2]
[343057334,1732318232881,-245.0,0.00019999,2]
[343057336,1732318232890,-499.90996127,0.0002,2]
[343057338,1732318232902,-1709.03745651,0.0002,2]
[343057340,1732318232912,-160.0,0.0002,2]
[343057341,1732318232922,-10831.80625908,0.0002,2]
[343057343,1732318232931,-181.45378645,0.00020347,2]
[343057345,1732318232942,-159.672079,0.00020447,2]
[343057347,1732318232951,-200.23850408,0.000208,2]
[343057349,1732318232961,-1615.04,0.000212,2]
[343057350,1732318232970,-151.0,0.00023911,4]
[343057352,1732318232979,-181.45378645,0.00024511,2]
[343057354,1732318232988,-151.0,0.00024611,5]
[343057356,1732318232998,-174.17164199,0.000249,2]
[343057358,1732318233007,-32879.55,0.0002499,10]
[343057360,1732318233017,-7679.50293793,0.0002499,10]
[343057362,1732318233029,-370.3127,0.0002499,10]
[343057377,1732318238855,-8013.2763129,0.0002499,10]
[343057378,1732318238907,-528.98214143,0.0002499,10]
[343057379,1732318238921,-2962.11,0.0002499,10]
[343057380,1732318238959,-1630.87326155,0.0002499,10]
[343057381,1732318238971,-505.4234493,0.0002499,10]
[343057406,1732318244144,-160.0,0.0002,2]
[343057408,1732318244154,-144.18192679,0.0002499,10]
[343057409,1732318244189,-3211.55798899,0.0002499,10]
[343057410,1732318244274,-1274.97,0.0002499,10]
[343057423,1732318246969,-362.0,0.00022,2]
[343057425,1732318246979,-362.0,0.00022192,2]
[343057426,1732318246989,-308.83279568,0.00023014,2]
[343057559,1732318415063,1573.0,0.00029614,120]
[343057969,1732318648276,160.324713,0.00013973,2]
[343059902,1732319432128,-1215.9357,0.00019245,2]
[343059903,1732319432138,-153.0,0.00019661,2]
[343059904,1732319432147,-153.0,0.00019661,2]
[343059905,1732319432157,-153.0,0.00019661,2]
[343059906,1732319432167,-1215.9357,0.0001993,2]
[343059907,1732319432179,-160.0,0.0002,2]
[343059908,1732319432188,-183.956421,0.00020089,2]
[343059909,1732319432197,-362.9075729,0.00020142,2]
[343059910,1732319432206,-300.0,0.00020242,2]
[343059911,1732319432215,-6505.15898366,0.00020242,2]
[343059912,1732319432228,-12374.84101634,0.00020242,2]
[343059913,1732319432237,-300.0,0.00020242,2]
[343059914,1732319432247,-389.75445528,0.00020245,2]
[343059915,1732319432256,-20340.8902988,0.00020245,2]
[343059916,1732319432266,-216.70954798,0.00020347,2]
[343059917,1732319432275,-160.324713,0.00020447,2]
[343059918,1732319432285,-1215.9357,0.00020615,2]
[343059919,1732319432295,-500.12348481,0.00021373,2]
[343059920,1732319432304,-32527.09073372,0.000214,2]
[343059921,1732319432314,-309.70430572,0.000214,2]
[343059922,1732319432323,-500.0,0.00021473,2]
[343059923,1732319432333,-157.06983418,0.00021473,2]
[343059924,1732319432343,-500.0,0.00021473,2]
[343059925,1732319432352,-500.0,0.00021473,2]
[343059926,1732319432362,-202.05317675,0.00021473,2]
[343059927,1732319432371,-500.30564595,0.00021473,2]
[343059928,1732319432380,-500.0,0.00021473,2]
[343059929,1732319432390,-500.0,0.00021473,2]
[343059930,1732319432399,-500.0,0.00021473,2]
[343059931,1732319432408,-500.0,0.00021473,2]
[343059932,1732319432418,-260.6656563,0.00021499,2]
[343059933,1732319432429,-249.31102393,0.00021499,2]
[343059934,1732319432439,-500.0,0.00021499,2]
[343059935,1732319432448,-247.42545785,0.00021499,2]
[343059936,1732319432457,-500.0,0.00021499,2]
[343059937,1732319432466,-500.0,0.00021499,2]
[343059938,1732319432476,-160.74110383,0.00021499,2]
[343059939,1732319432485,-500.0,0.00021499,2]
[343059940,1732319432495,-500.0,0.00021499,2]
[343059941,1732319432504,-500.0,0.00021499,2]
[343059942,1732319432513,-500.0,0.00021499,2]
[343059943,1732319432523,-500.0,0.00021499,2]
[343059944,1732319432532,-500.0,0.00021499,2]
[343059945,1732319432542,-500.0,0.00021499,2]
[343059946,1732319432552,-500.0,0.00021499,2]
[343059947,1732319432561,-500.0,0.00021499,2]
[343059948,1732319432570,-167.63384103,0.00021499,2]
[343059949,1732319432580,-500.0,0.00021499,2]
[343059950,1732319432589,-500.0,0.00021499,2]
[343059951,1732319432599,-433.60578242,0.00021499,2]
[343059952,1732319432609,-500.0,0.00021499,2]
[343059953,1732319432619,-500.0,0.00021499,2]
[343059954,1732319432628,-500.0,0.00021499,2]
[343059955,1732319432638,-500.0,0.00021499,2]
[343059956,1732319432647,-500.0,0.00021499,2]
[343059957,1732319432656,-500.0,0.00021499,2]
[343059958,1732319432665,-306.77653392,0.00021499,2]
[343059959,1732319432677,-500.0,0.00021499,2]
[343059960,1732319432687,-500.0,0.00021499,2]
[343059961,1732319432696,-500.0,0.00021499,2]
[343059962,1732319432705,-500.0,0.00021499,2]
[343059963,1732319432714,-500.0,0.00021499,2]
[343059964,1732319432724,-500.0,0.00021499,2]
[343059965,1732319432733,-500.0,0.00021499,2]
[343059966,1732319432743,-500.0,0.00021499,2]
[343059967,1732319432753,-500.0,0.00021499,2]
[343059968,1732319432762,-500.0,0.00021499,2]
[343059969,1732319432771,-500.0,0.00021499,2]
[343059970,1732319432781,-500.0,0.00021499,2]
[343059971,1732319432790,-500.0,0.00021499,2]
[343059972,1732319432800,-500.0,0.00021499,2]
[343059973,1732319432809,-500.0,0.00021499,2]
[343059974,1732319432818,-500.0,0.00021499,2]
[343059975,1732319432827,-500.0,0.00021499,2]
[343059976,1732319432837,-500.0,0.00021499,2]
[343059977,1732319432846,-261.09645524,0.00021499,2]
[343059979,1732319432856,-500.0,0.00021499,2]
[343059981,1732319432866,-500.0,0.00021499,2]
[343059982,1732319432876,-206.63262126,0.00021499,2]
[343059983,1732319432886,-500.0,0.00021499,2]
[343059984,1732319432895,-500.0,0.00021499,2]
[343059985,1732319432905,-500.0,0.00021499,2]
[343059986,1732319432914,-500.0,0.00021499,2]
[343059987,1732319432925,-500.0,0.00021499,2]
[343059988,1732319432935,-500.0,0.00021499,2]
[343059989,1732319432944,-500.0,0.00021499,2]
[343059990,1732319432954,-500.0,0.00021499,2]
[343059992,1732319432963,-500.0,0.00021499,2]
[343059994,1732319432972,-500.0,0.00021499,2]
[343059995,1732319432982,-500.0,0.00021499,2]
[343059996,1732319432991,-500.0,0.00021499,2]
[343059997,1732319433001,-500.0,0.00021499,2]
[343059998,1732319433010,-500.0,0.00021499,2]
[343059999,1732319433020,-500.0,0.00021499,2]
[343060000,1732319433029,-500.0,0.00021499,2]
[343060001,1732319433040,-500.0,0.00021499,2]
[343060002,1732319433053,-500.0,0.00021499,2]
[343060003,1732319433062,-459854.60757239,0.000215,8]
[343060004,1732319433075,-56073.92645149,0.000215,8]
[343060005,1732319433088,-4301.597,0.000215,8]
[343060006,1732319433162,-1181.9135948,0.000215,8]
[343060007,1732319433209,-7773.98861948,0.000215,8]
[343060027,1732319438095,-664.80000001,0.000215,8]
[343060127,1732319443921,-160.0,0.0002,2]
[343060129,1732319443934,-38662.62088978,0.000215,8]
[343060149,1732319445971,-9979.72101,0.000215,8]
[343060480,1732319598783,174.396081,0.00013973,2]
[343060523,1732319934663,318.73432882,0.00029614,120]
[343060566,1732320284100,165.676276,0.00013973,2]
[343061772,1732320638140,-189.62085443,0.000189,2]
[343061774,1732320638150,-300.0,0.00018972,2]
[343061776,1732320638159,-300.0,0.00018972,2]
[343061778,1732320638169,-500.0,0.00018973,2]
[343061780,1732320638179,-500.0,0.00018973,2]
[343061782,1732320638189,-500.0,0.00018973,2]
[343061784,1732320638199,-623.7654921,0.00018973,2]
[343061786,1732320638208,-500.00000001,0.00018973,2]
[343061788,1732320638218,-500.0,0.00018973,2]
[343061790,1732320638228,-963.93702149,0.00018989,2]
[343061792,1732320638237,-703.95083487,0.0001899,2]
[343061794,1732320638247,-19673.48016056,0.0001899,2]
[343061935,1732320639623,-1642.67919877,0.0001899,2]
[343061938,1732320639637,-3345.767573,0.0001899,2]
[343061949,1732320639682,-556.86521642,0.0001899,2]
[343061952,1732320639693,-757.89754074,0.0001899,2]
[343061955,1732320639705,-633.90707799,0.0001899,2]
[343061958,1732320639716,-1328.84,0.0001899,2]
[343061963,1732320639735,-335.5000105,0.0001899,2]
[343062229,1732320642407,-2939.39999192,0.0001899,2]
[343062236,1732320642463,-365.3561984,0.0001899,2]
[343062238,1732320642475,-2937.25782,0.0001899,2]
[343062333,1732320643234,-2053.65944378,0.0001899,2]
[343063670,1732320687059,164.0,0.00016,2]
[343063777,1732321347077,166.121255,0.00013973,2]
[343065027,1732321719242,482.5,0.0002961,120]
[343065549,1732321841798,-300.0,0.00017999,2]
[343065551,1732321841812,-300.0,0.00017999,2]
[343065553,1732321841822,-9900.01684375,0.00018,2]
[343065598,1732321842244,-306.148765,0.00018,2]
[343065601,1732321842256,-2638.03356978,0.00018,2]
[343065605,1732321842271,-3740.36452114,0.00018,2]
[343065608,1732321842284,-3656.43630033,0.00018,2]
[343065610,1732321842293,-2508.56369967,0.00018,2]
[343065612,1732321842305,-1037.11,0.00018,2]
[343065617,1732321842319,-6053.32181801,0.00018,2]
[343065662,1732321842723,-3830.39425024,0.00018,2]
[343065664,1732321842733,-500.0,0.000187,2]
[343065668,1732321842743,-558.3292839,0.00018742,2]
[343065671,1732321842753,-6239.97593054,0.00018742,2]
[343065673,1732321842763,-194.97304221,0.00018872,2]
[343065675,1732321842772,-500.0,0.00019,2]
[343065677,1732321842782,-183.956421,0.00019231,2]
[343065679,1732321842792,-277.815847,0.00019288,2]
[343065681,1732321842804,-162.1042811,0.00019329,2]
[343065683,1732321842816,-1737.85629035,0.00019613,2]
[343065685,1732321842826,-420.0,0.00019639,2]
[343065687,1732321842835,-153.0,0.00019718,2]
[343065689,1732321842847,-202.687118,0.00019777,2]
[343065691,1732321842858,-420.0,0.00019799,2]
[343065694,1732321842868,-360.93111459,0.0001999,2]
[343065696,1732321842878,-1709.03745651,0.0002,2]
[343065697,1732321842887,-160.0,0.0002,2]
[343065699,1732321842898,-10831.80625908,0.0002,2]
[343065702,1732321842907,-166.121255,0.00020447,2]
[343065704,1732321842917,-200.23850408,0.000208,2]
[343065705,1732321842926,-3000.0,0.00021,2]
[343065707,1732321842935,-3000.0,0.0002101,2]
[343065709,1732321842944,-3000.0,0.0002102,2]
[343065711,1732321842954,-3000.0,0.0002103,2]
[343065713,1732321842963,-3000.0,0.0002104,2]
[343065716,1732321842973,-3000.0,0.0002105,2]
[343065717,1732321842983,-3000.0,0.0002106,2]
[343065720,1732321842992,-1589.69301998,0.00021065,2]
[343065722,1732321843003,-3000.0,0.0002107,2]
[343065724,1732321843012,-3000.0,0.0002108,2]
[343065726,1732321843022,-3000.0,0.0002109,2]
[343065728,1732321843031,-2874.44940328,0.000211,2]
[343065730,1732321843044,-125.55059672,0.000211,2]
[343065732,1732321843054,-3000.0,0.0002111,2]
[343065734,1732321843063,-377.21,0.0002111,3]
[343065736,1732321843072,-444.15940328,0.0002112,2]
[343065738,1732321843084,-1038.53005272,0.0002112,2]
[343065741,1732321843095,-1360.0001,0.0002112,2]
[343065743,1732321843112,-157.310444,0.0002112,2]
[343065745,1732321843121,-308.62,0.0002112,3]
[343065747,1732321843131,-377.21,0.0002112,3]
[343065749,1732321843140,-2260.87526407,0.0002113,2]
[343065752,1732321843152,-374.8200062,0.0002113,2]
[343065768,1732321843293,-364.30472973,0.0002113,2]
[343065770,1732321843303,-2070.25774632,0.0002114,2]
[343065772,1732321843315,-929.74225368,0.0002114,2]
[343065774,1732321843325,-3000.0,0.0002115,2]
[343065776,1732321843334,-1701.80822264,0.0002116,2]
[343065778,1732321843347,-1298.19177736,0.0002116,2]
[343065780,1732321843357,-3000.0,0.0002117,2]
[343065782,1732321843366,-500.0,0.00021173,2]
[343065784,1732321843375,-159.78668503,0.00021173,2]
[343065786,1732321843385,-500.0,0.00021173,2]
[343065788,1732321843394,-3000.0,0.0002118,2]
[343065790,1732321843403,-3000.0,0.0002119,2]
[343065792,1732321843412,-3000.0,0.000212,2]
[343065794,1732321843421,-3000.0,0.0002121,2]
[343065796,1732321843431,-3000.0,0.0002122,2]
[343065798,1732321843440,-3000.0,0.0002123,2]
[343065800,1732321843449,-3000.0,0.0002124,2]
[343065802,1732321843459,-3000.0,0.0002125,2]